[Event "Live Chess"]
[Site "Chess.com"]
[Date "2023.05.21"]
[Round "-"]
[White "wot-not"]
[Black "Tilbs_12"]
[Result "1-0"]
[WhiteElo "1543"]
[BlackElo "1547"]
[TimeControl "300"]
[EndTime "18:12:09 PDT"]
[Termination "wot-not won on time"]

1. e4 {[%clk 0:04:56.6]} 1... c6 {[%clk 0:04:57.4]} 2. f4 {[%clk 0:04:56.1]}
2... d5 {[%clk 0:04:56.4]} 3. e5 {[%clk 0:04:55]} 3... c5 {[%clk 0:04:55.3]} 4.
Nf3 {[%clk 0:04:54.8]} 4... Nc6 {[%clk 0:04:54.5]} 5. d4 {[%clk 0:04:54.6]} 5...
Bg4 {[%clk 0:04:48.6]} 6. Bb5 {[%clk 0:04:49.9]} 6... e6 {[%clk 0:04:45.7]} 7.
O-O {[%clk 0:04:47.5]} 7... cxd4 {[%clk 0:04:37.2]} 8. h3 {[%clk 0:04:46.3]}
8... Bxf3 {[%clk 0:04:27.4]} 9. Qxf3 {[%clk 0:04:43.5]} 9... Bc5 {[%clk
0:04:25.8]} 10. Kh1 {[%clk 0:04:40.1]} 10... Ne7 {[%clk 0:04:23.6]} 11. Nd2
{[%clk 0:04:32]} 11... O-O {[%clk 0:04:16.8]} 12. Nb3 {[%clk 0:03:55]} 12... Bb6
{[%clk 0:03:41]} 13. Bxc6 {[%clk 0:03:51.8]} 13... Nxc6 {[%clk 0:03:37]} 14. Bd2
{[%clk 0:03:51.3]} 14... a5 {[%clk 0:03:22.1]} 15. Be1 {[%clk 0:03:49]} 15... a4
{[%clk 0:03:16.8]} 16. Nc1 {[%clk 0:03:45.2]} 16... Rc8 {[%clk 0:02:44.4]} 17.
Nd3 {[%clk 0:03:38.3]} 17... Na5 {[%clk 0:02:29.9]} 18. Rc1 {[%clk 0:03:19.3]}
18... Qd7 {[%clk 0:02:13.3]} 19. Bh4 {[%clk 0:03:12.4]} 19... Nc4 {[%clk
0:02:08.3]} 20. Qg3 {[%clk 0:03:02.1]} 20... Ne3 {[%clk 0:02:05.7]} 21. Rf2
{[%clk 0:02:53.2]} 21... Nf5 {[%clk 0:02:02.5]} 22. Qg4 {[%clk 0:02:50.4]} 22...
Nxh4 {[%clk 0:02:00.8]} 23. Qxh4 {[%clk 0:02:49.8]} 23... Qd8 {[%clk 0:01:58.6]}
24. Qg4 {[%clk 0:02:48.1]} 24... Qe7 {[%clk 0:01:47.7]} 25. Rf3 {[%clk
0:02:45.6]} 25... g6 {[%clk 0:01:43.8]} 26. h4 {[%clk 0:02:39.3]} 26... Rfe8
{[%clk 0:01:42.6]} 27. h5 {[%clk 0:02:37.8]} 27... Bd8 {[%clk 0:01:38.7]} 28.
hxg6 {[%clk 0:02:33.9]} 28... fxg6 {[%clk 0:01:24.8]} 29. Rh3 {[%clk 0:02:29.5]}
29... Rf8 {[%clk 0:01:19.7]} 30. g3 {[%clk 0:02:11.5]} 30... Rc7 {[%clk
0:01:15.2]} 31. Qf3 {[%clk 0:02:09.6]} 31... Qe8 {[%clk 0:01:10.9]} 32. Qf2
{[%clk 0:02:07.9]} 32... Rcf7 {[%clk 0:01:08.2]} 33. Qxd4 {[%clk 0:02:05.6]}
33... Qc6 {[%clk 0:00:54.3]} 34. Kg2 {[%clk 0:02:02.6]} 34... b5 {[%clk
0:00:44.7]} 35. Nb4 {[%clk 0:01:55.7]} 35... Qb6 {[%clk 0:00:41.7]} 36. Qxb6
{[%clk 0:01:52.6]} 36... Bxb6 {[%clk 0:00:41.6]} 37. a3 {[%clk 0:01:46.3]} 37...
g5 {[%clk 0:00:40.2]} 38. Rf1 {[%clk 0:01:40.7]} 38... gxf4 {[%clk 0:00:38.2]}
39. g4 {[%clk 0:01:39.9]} 39... Kg7 {[%clk 0:00:33.8]} 40. Rfh1 {[%clk
0:01:35.8]} 40... Kg8 {[%clk 0:00:25.5]} 41. Rh6 {[%clk 0:01:34.2]} 41... f3+
{[%clk 0:00:23]} 42. Kf1 {[%clk 0:01:32.6]} 42... Re8 {[%clk 0:00:20]} 43. Nc6
{[%clk 0:01:26.8]} 43... f2 {[%clk 0:00:18.1]} 44. c3 {[%clk 0:01:10.3]} 44...
Be3 {[%clk 0:00:17.1]} 45. Nd4 {[%clk 0:01:08.8]} 45... Bxh6 {[%clk 0:00:15.2]}
46. Rxh6 {[%clk 0:01:06.9]} 46... Rf4 {[%clk 0:00:14.3]} 47. Nxe6 {[%clk
0:01:03]} 47... Rxe6 {[%clk 0:00:13.3]} 48. Rxe6 {[%clk 0:01:01.7]} 48... Rxg4
{[%clk 0:00:13]} 49. Rd6 {[%clk 0:01:00.1]} 49... Rg1+ {[%clk 0:00:11.7]} 50.
Kxf2 {[%clk 0:00:59]} 50... Rb1 {[%clk 0:00:10.5]} 51. e6 {[%clk 0:00:57.2]}
51... Rxb2+ {[%clk 0:00:10.1]} 52. Ke3 {[%clk 0:00:55.6]} 52... Kf8 {[%clk
0:00:09.4]} 53. Kd4 {[%clk 0:00:55.1]} 53... Ke7 {[%clk 0:00:08.7]} 54. Rb6
{[%clk 0:00:53.3]} 54... Rd2+ {[%clk 0:00:07.6]} 55. Kc5 {[%clk 0:00:51.5]}
55... d4 {[%clk 0:00:06.7]} 56. cxd4 {[%clk 0:00:50.2]} 56... Rc2+ {[%clk
0:00:06.1]} 57. Kd5 {[%clk 0:00:48.8]} 57... Rc4 {[%clk 0:00:05]} 58. Ke5 {[%clk
0:00:47.8]} 58... Rc3 {[%clk 0:00:04.4]} 59. d5 {[%clk 0:00:47.2]} 59... Rxa3
{[%clk 0:00:03.8]} 60. d6+ {[%clk 0:00:45.8]} 60... Ke8 {[%clk 0:00:02.7]} 61.
d7+ {[%clk 0:00:45.2]} 61... Ke7 {[%clk 0:00:02]} 62. Rxb5 {[%clk 0:00:42.2]}
62... Re3+ {[%clk 0:00:01.2]} 63. Kd4 {[%clk 0:00:41.4]} 63... Rxe6 {[%clk
0:00:00.6]} 64. Kc4 {[%clk 0:00:37.7]} 1-0

[Event "Live Chess"]
[Site "Chess.com"]
[Date "2023.05.21"]
[Round "-"]
[White "raminguy"]
[Black "SupremeTactician"]
[Result "0-1"]
[WhiteElo "1937"]
[BlackElo "2310"]
[TimeControl "300"]
[EndTime "18:12:12 PDT"]
[Termination "SupremeTactician won by resignation"]

1. d4 {[%clk 0:04:59.7]} 1... Nf6 {[%clk 0:04:58.1]} 2. Nc3 {[%clk 0:04:59.1]}
2... e6 {[%clk 0:04:58]} 3. e4 {[%clk 0:04:57.8]} 3... d5 {[%clk 0:04:57.9]} 4.
Bg5 {[%clk 0:04:56]} 4... Bb4 {[%clk 0:04:57.5]} 5. e5 {[%clk 0:04:53.1]} 5...
Bxc3+ {[%clk 0:04:54.1]} 6. bxc3 {[%clk 0:04:50.6]} 6... h6 {[%clk 0:04:54]} 7.
Bh4 {[%clk 0:04:47.2]} 7... g5 {[%clk 0:04:53.2]} 8. Bg3 {[%clk 0:04:45.9]} 8...
Ne4 {[%clk 0:04:51.8]} 9. Ne2 {[%clk 0:04:39]} 9... Nc6 {[%clk 0:04:50.1]} 10.
f3 {[%clk 0:04:37.6]} 10... Nxg3 {[%clk 0:04:48.5]} 11. hxg3 {[%clk 0:04:37.5]}
11... Qe7 {[%clk 0:04:46.6]} 12. Qd3 {[%clk 0:04:34]} 12... Bd7 {[%clk
0:04:43.5]} 13. f4 {[%clk 0:04:32.4]} 13... Na5 {[%clk 0:04:42.4]} 14. Nc1
{[%clk 0:04:29.8]} 14... Nc4 {[%clk 0:04:40.3]} 15. Qf3 {[%clk 0:04:25.6]} 15...
O-O-O {[%clk 0:04:31.1]} 16. Bxc4 {[%clk 0:04:23.8]} 16... dxc4 {[%clk 0:04:31]}
17. Rb1 {[%clk 0:04:21.9]} 17... Bc6 {[%clk 0:04:30]} 18. Qe2 {[%clk 0:04:18]}
18... gxf4 {[%clk 0:04:29.1]} 19. gxf4 {[%clk 0:04:16.2]} 19... Qa3 {[%clk
0:04:28.7]} 20. Qxc4 {[%clk 0:04:11.4]} 20... Bxg2 {[%clk 0:04:25.7]} 21. Rg1
{[%clk 0:03:53.5]} 21... Bd5 {[%clk 0:04:23.6]} 22. Qb4 {[%clk 0:03:41.4]} 22...
Qxb4 {[%clk 0:04:20.1]} 23. Rxb4 {[%clk 0:03:38.1]} 23... h5 {[%clk 0:04:20]}
24. Rg3 {[%clk 0:03:35.2]} 24... h4 {[%clk 0:04:18.5]} 25. Rh3 {[%clk
0:03:34.9]} 25... Rdg8 {[%clk 0:04:17.2]} 26. Ne2 {[%clk 0:03:31.6]} 26... Rg2
{[%clk 0:04:14.1]} 27. c4 {[%clk 0:03:28.1]} 27... Be4 {[%clk 0:04:12.8]} 28.
Kf1 {[%clk 0:03:13.3]} 28... Rg7 {[%clk 0:04:06.7]} 29. Rb2 {[%clk 0:03:00.6]}
29... Bg2+ {[%clk 0:04:04.9]} 0-1

[Event "Live Chess"]
[Site "Chess.com"]
[Date "2023.05.21"]
[Round "-"]
[White "nigelst"]
[Black "IgorSchukin"]
[Result "0-1"]
[WhiteElo "1772"]
[BlackElo "1767"]
[TimeControl "300"]
[EndTime "18:12:43 PDT"]
[Termination "IgorSchukin won by resignation"]

1. e4 {[%clk 0:04:58.3]} 1... c5 {[%clk 0:04:58.7]} 2. Nf3 {[%clk 0:04:56.9]}
2... Nc6 {[%clk 0:04:58.2]} 3. Bb5 {[%clk 0:04:55.5]} 3... Qc7 {[%clk
0:04:56.9]} 4. Kf1 {[%clk 0:04:53.5]} 4... e6 {[%clk 0:04:54.9]} 5. c3 {[%clk
0:04:52.4]} 5... Nf6 {[%clk 0:04:53.4]} 6. Qe2 {[%clk 0:04:49.9]} 6... Be7
{[%clk 0:04:51.2]} 7. g3 {[%clk 0:04:48.8]} 7... O-O {[%clk 0:04:48.9]} 8. Kg2
{[%clk 0:04:47.7]} 8... d5 {[%clk 0:04:46.7]} 9. exd5 {[%clk 0:04:45.5]} 9...
Nxd5 {[%clk 0:04:43.4]} 10. d4 {[%clk 0:04:37.9]} 10... cxd4 {[%clk 0:04:41.8]}
11. cxd4 {[%clk 0:04:34.8]} 11... Bd7 {[%clk 0:04:36]} 12. Nc3 {[%clk
0:04:31.4]} 12... Nf6 {[%clk 0:04:25.6]} 13. d5 {[%clk 0:04:17]} 13... Nxd5
{[%clk 0:04:22]} 14. Nxd5 {[%clk 0:04:15.2]} 14... exd5 {[%clk 0:04:20.9]} 15.
Bxc6 {[%clk 0:04:14.3]} 15... Bxc6 {[%clk 0:04:19.6]} 16. Ng5 {[%clk 0:04:03.2]}
16... d4+ {[%clk 0:04:16.4]} 17. f3 {[%clk 0:04:01.8]} 17... Bxg5 {[%clk
0:04:10.9]} 18. Bxg5 {[%clk 0:03:58.6]} 18... Rfe8 {[%clk 0:04:08.2]} 19. Qd3
{[%clk 0:03:56]} 19... h6 {[%clk 0:03:58.8]} 20. Bf4 {[%clk 0:03:53.7]} 20...
Qb6 {[%clk 0:03:56.9]} 21. b3 {[%clk 0:03:48.8]} 21... Rac8 {[%clk 0:03:54.3]}
22. Rhe1 {[%clk 0:03:46]} 22... Bd5 {[%clk 0:03:42]} 23. Qf5 {[%clk 0:03:43]}
23... Be6 {[%clk 0:03:33.7]} 24. Qh5 {[%clk 0:03:37.7]} 24... Rc2+ {[%clk
0:03:29.6]} 25. Kh1 {[%clk 0:03:32.9]} 25... d3 {[%clk 0:03:15.9]} 26. Be3
{[%clk 0:03:11.4]} 26... Qc6 {[%clk 0:03:06.6]} 27. Rf1 {[%clk 0:03:03.2]} 27...
Bd5 {[%clk 0:02:55.1]} 28. Qg4 {[%clk 0:02:57.5]} 28... Rxe3 {[%clk 0:02:50.4]}
29. Rae1 {[%clk 0:02:46.3]} 29... Bxf3+ {[%clk 0:02:44.1]} 30. Kg1 {[%clk
0:02:40.3]} 30... Rg2+ {[%clk 0:02:37.1]} 0-1

[Event "Live Chess"]
[Site "Chess.com"]
[Date "2023.05.21"]
[Round "-"]
[White "jimwad"]
[Black "GMHarry-youtube"]
[Result "0-1"]
[WhiteElo "1250"]
[BlackElo "2044"]
[TimeControl "300"]
[EndTime "18:12:56 PDT"]
[Termination "GMHarry-youtube won by resignation"]

1. d4 {[%clk 0:04:57.6]} 1... Nf6 {[%clk 0:04:58.3]} 2. c4 {[%clk 0:04:56.8]}
2... g6 {[%clk 0:04:55.5]} 3. Nc3 {[%clk 0:04:55.6]} 3... d5 {[%clk 0:04:53.8]}
4. Bf4 {[%clk 0:04:53.2]} 4... Bg7 {[%clk 0:04:52.1]} 5. Nf3 {[%clk 0:04:51.8]}
5... O-O {[%clk 0:04:50.8]} 6. e3 {[%clk 0:04:51]} 6... c6 {[%clk 0:04:48.5]} 7.
c5 {[%clk 0:04:46.9]} 7... Nbd7 {[%clk 0:04:44.3]} 8. b4 {[%clk 0:04:45.4]} 8...
Nh5 {[%clk 0:04:42]} 9. Be2 {[%clk 0:04:37.7]} 9... Nxf4 {[%clk 0:04:37]} 10.
exf4 {[%clk 0:04:35.9]} 10... f6 {[%clk 0:04:34.8]} 11. O-O {[%clk 0:04:34.1]}
11... e5 {[%clk 0:04:34]} 12. fxe5 {[%clk 0:04:32]} 12... fxe5 {[%clk
0:04:33.9]} 13. dxe5 {[%clk 0:04:27.5]} 13... Nxe5 {[%clk 0:04:33.8]} 14. Nxe5
{[%clk 0:04:25.9]} 14... Bxe5 {[%clk 0:04:33.7]} 15. Rc1 {[%clk 0:04:19.3]}
15... Qf6 {[%clk 0:04:23.8]} 16. Bf3 {[%clk 0:04:16.1]} 16... Bxc3 {[%clk
0:04:22.3]} 17. Rxc3 {[%clk 0:04:12.3]} 17... Qxc3 {[%clk 0:04:20.5]} 18. Qe1
{[%clk 0:04:04.1]} 18... Qxe1 {[%clk 0:04:13.7]} 19. Rxe1 {[%clk 0:04:02.9]}
19... Bf5 {[%clk 0:04:13.2]} 20. a3 {[%clk 0:04:00.9]} 20... Rae8 {[%clk
0:04:12.2]} 21. Rxe8 {[%clk 0:03:58.5]} 21... Rxe8 {[%clk 0:04:12.1]} 22. h3
{[%clk 0:03:56.4]} 22... Re1+ {[%clk 0:04:10.3]} 23. Kh2 {[%clk 0:03:54.8]}
23... h5 {[%clk 0:04:09.5]} 0-1

[Event "Live Chess"]
[Site "Chess.com"]
[Date "2023.05.21"]
[Round "-"]
[White "Biranidun"]
[Black "chessfiction"]
[Result "1-0"]
[WhiteElo "2579"]
[BlackElo "2344"]
[TimeControl "300"]
[EndTime "18:13:03 PDT"]
[Termination "Biranidun won by resignation"]

1. e4 {[%clk 0:04:59.5]} 1... e6 {[%clk 0:04:58.9]} 2. d4 {[%clk 0:04:57.1]}
2... d5 {[%clk 0:04:58.8]} 3. e5 {[%clk 0:04:56.6]} 3... c5 {[%clk 0:04:57.6]}
4. c3 {[%clk 0:04:56.1]} 4... Nc6 {[%clk 0:04:57.1]} 5. Nf3 {[%clk 0:04:55.5]}
5... Qb6 {[%clk 0:04:56.7]} 6. Bd3 {[%clk 0:04:54.6]} 6... Bd7 {[%clk
0:04:56.3]} 7. dxc5 {[%clk 0:04:54]} 7... Bxc5 {[%clk 0:04:54.9]} 8. O-O {[%clk
0:04:53.9]} 8... f6 {[%clk 0:04:52.5]} 9. b4 {[%clk 0:04:47.2]} 9... Be7 {[%clk
0:04:51.2]} 10. Qe2 {[%clk 0:04:46.4]} 10... fxe5 {[%clk 0:04:49.6]} 11. Nxe5
{[%clk 0:04:46.3]} 11... Nxe5 {[%clk 0:04:48.5]} 12. Qxe5 {[%clk 0:04:46.2]}
12... Nf6 {[%clk 0:04:46.3]} 13. Be3 {[%clk 0:04:43.3]} 13... Qd6 {[%clk
0:04:44.5]} 14. Bf4 {[%clk 0:04:35.8]} 14... Qxe5 {[%clk 0:04:42.9]} 15. Bxe5
{[%clk 0:04:35.7]} 15... O-O {[%clk 0:04:41.9]} 16. h3 {[%clk 0:04:31.6]} 16...
a6 {[%clk 0:04:38.5]} 17. Nd2 {[%clk 0:04:30.6]} 17... Bb5 {[%clk 0:04:36.6]}
18. Bxb5 {[%clk 0:04:28.5]} 18... axb5 {[%clk 0:04:36.5]} 19. Nb3 {[%clk
0:04:25.5]} 19... Ne4 {[%clk 0:04:33.4]} 20. f3 {[%clk 0:04:23.6]} 20... Nd6
{[%clk 0:04:28.2]} 21. Rfe1 {[%clk 0:04:14.4]} 21... Nc4 {[%clk 0:04:25.3]} 22.
Bd4 {[%clk 0:04:14]} 22... Bh4 {[%clk 0:03:57.4]} 23. Rxe6 {[%clk 0:04:11.6]}
23... Ra3 {[%clk 0:03:48]} 24. Nc5 {[%clk 0:03:59.5]} 24... Rfa8 {[%clk
0:03:43.5]} 25. Re2 {[%clk 0:03:57.9]} 25... b6 {[%clk 0:03:37.8]} 26. Ne6
{[%clk 0:03:49.7]} 26... Bf6 {[%clk 0:03:34.5]} 27. Bxf6 {[%clk 0:03:44.4]}
27... gxf6 {[%clk 0:03:34.4]} 28. Nc7 {[%clk 0:03:43.3]} 28... Rc8 {[%clk
0:03:26.5]} 29. Nxd5 {[%clk 0:03:39.4]} 29... Kf7 {[%clk 0:03:24]} 30. Re7+
{[%clk 0:03:34.1]} 30... Kg8 {[%clk 0:03:20.2]} 31. Nxf6+ {[%clk 0:03:32.4]} 1-0

[Event "Live Chess"]
[Site "Chess.com"]
[Date "2023.05.21"]
[Round "-"]
[White "Duke_of_Bebington"]
[Black "blowerd"]
[Result "1-0"]
[WhiteElo "1588"]
[BlackElo "1359"]
[TimeControl "300"]
[EndTime "18:13:47 PDT"]
[Termination "Duke_of_Bebington won on time"]

1. e4 {[%clk 0:04:54.6]} 1... e5 {[%clk 0:04:58.6]} 2. Nf3 {[%clk 0:04:53.6]}
2... Nc6 {[%clk 0:04:57.1]} 3. Bc4 {[%clk 0:04:52.4]} 3... Bc5 {[%clk
0:04:56.4]} 4. b4 {[%clk 0:04:49]} 4... Bxb4 {[%clk 0:04:51.5]} 5. c3 {[%clk
0:04:48.1]} 5... Bc5 {[%clk 0:04:50]} 6. d4 {[%clk 0:04:46.7]} 6... exd4 {[%clk
0:04:48.3]} 7. O-O {[%clk 0:04:45.5]} 7... dxc3 {[%clk 0:04:46.1]} 8. Bxf7+
{[%clk 0:04:43.2]} 8... Kxf7 {[%clk 0:04:40.6]} 9. Qd5+ {[%clk 0:04:40.8]} 9...
Ke8 {[%clk 0:04:25.6]} 10. Qxc5 {[%clk 0:04:37.3]} 10... Qe7 {[%clk 0:04:22.4]}
11. Qxc3 {[%clk 0:04:31.1]} 11... Nf6 {[%clk 0:04:19.9]} 12. Bb2 {[%clk
0:04:03.2]} 12... d6 {[%clk 0:04:18.1]} 13. Nbd2 {[%clk 0:03:57.6]} 13... h6
{[%clk 0:04:15.8]} 14. e5 {[%clk 0:03:46.4]} 14... dxe5 {[%clk 0:04:13.9]} 15.
Nxe5 {[%clk 0:03:43.1]} 15... Nxe5 {[%clk 0:04:10.5]} 16. Qxe5 {[%clk
0:03:40.8]} 16... Qxe5 {[%clk 0:04:09.1]} 17. Bxe5 {[%clk 0:03:40.3]} 17... c6
{[%clk 0:04:04.6]} 18. Rfe1 {[%clk 0:03:37]} 18... Kf7 {[%clk 0:04:02.5]} 19.
Nc4 {[%clk 0:03:34.9]} 19... Bf5 {[%clk 0:03:54.7]} 20. Nd6+ {[%clk 0:03:31.6]}
20... Kg6 {[%clk 0:03:50.7]} 21. Nxb7 {[%clk 0:03:21]} 21... Rhe8 {[%clk
0:03:41.8]} 22. Nd6 {[%clk 0:03:15.5]} 22... Re6 {[%clk 0:03:35.9]} 23. Nxf5
{[%clk 0:02:42.1]} 23... Kxf5 {[%clk 0:03:31.8]} 24. Bxf6 {[%clk 0:02:40.3]}
24... gxf6 {[%clk 0:03:16.2]} 25. Rxe6 {[%clk 0:02:37.1]} 25... Kxe6 {[%clk
0:03:14.4]} 26. Rc1 {[%clk 0:02:34.5]} 26... Kd6 {[%clk 0:03:06.9]} 27. f4
{[%clk 0:02:29.9]} 27... Re8 {[%clk 0:03:03.6]} 28. Kf2 {[%clk 0:02:28.3]} 28...
Re4 {[%clk 0:03:00.9]} 29. Kf3 {[%clk 0:02:25.3]} 29... Ra4 {[%clk 0:02:56]} 30.
Rc2 {[%clk 0:02:22.8]} 30... f5 {[%clk 0:02:52.3]} 31. Rd2+ {[%clk 0:02:12.5]}
31... Kc5 {[%clk 0:02:49]} 32. Rc2+ {[%clk 0:02:11]} 32... Kb5 {[%clk
0:02:46.1]} 33. g3 {[%clk 0:02:07.7]} 33... Ra3+ {[%clk 0:02:41]} 34. Ke2 {[%clk
0:02:06.4]} 34... c5 {[%clk 0:02:39.9]} 35. Kd2 {[%clk 0:02:02.8]} 35... c4
{[%clk 0:02:38.8]} 36. Kc1 {[%clk 0:02:01.7]} 36... Rf3 {[%clk 0:02:33.3]} 37.
Kb2 {[%clk 0:01:59]} 37... Kc5 {[%clk 0:02:28.5]} 38. Re2 {[%clk 0:01:51.9]}
38... Kb4 {[%clk 0:02:16.2]} 39. Rc2 {[%clk 0:01:39.2]} 39... c3+ {[%clk
0:02:09.4]} 40. Kb1 {[%clk 0:01:37.4]} 40... Rf1+ {[%clk 0:02:07.2]} 41. Rc1
{[%clk 0:01:36]} 41... Rf2 {[%clk 0:01:39.9]} 42. Rc2 {[%clk 0:01:35]} 42...
Rf1+ {[%clk 0:01:38.3]} 43. Rc1 {[%clk 0:01:34.3]} 43... Rf2 {[%clk 0:01:29.7]}
44. Rc2 {[%clk 0:01:33.4]} 44... Rd2 {[%clk 0:00:46.5]} 45. Kc1 {[%clk
0:01:25.7]} 45... a5 {[%clk 0:00:17.9]} 46. Rxd2 {[%clk 0:01:23.8]} 46... cxd2+
{[%clk 0:00:16.6]} 47. Kxd2 {[%clk 0:01:23.3]} 47... Ka3 {[%clk 0:00:15.9]} 48.
Kc2 {[%clk 0:01:22.4]} 48... Kxa2 {[%clk 0:00:15.1]} 49. g4 {[%clk 0:01:20.6]}
49... fxg4 {[%clk 0:00:12]} 50. f5 {[%clk 0:01:19.9]} 50... g3 {[%clk 0:00:10]}
51. hxg3 {[%clk 0:01:17.9]} 51... Ka3 {[%clk 0:00:06.7]} 52. f6 {[%clk
0:01:14.6]} 52... h5 {[%clk 0:00:04.7]} 53. f7 {[%clk 0:01:13.5]} 53... h4
{[%clk 0:00:02.5]} 54. f8=Q+ {[%clk 0:01:12.5]} 1-0

[Event "Live Chess"]
[Site "Chess.com"]
[Date "2023.05.21"]
[Round "-"]
[White "ClassyChameleon"]
[Black "Conradical12"]
[Result "0-1"]
[WhiteElo "1099"]
[BlackElo "1644"]
[TimeControl "300"]
[EndTime "18:14:15 PDT"]
[Termination "Conradical12 won by resignation"]

1. e4 {[%clk 0:04:59.3]} 1... e5 {[%clk 0:04:58.7]} 2. Nf3 {[%clk 0:04:58.7]}
2... Nc6 {[%clk 0:04:58.1]} 3. c3 {[%clk 0:04:57.4]} 3... Nf6 {[%clk 0:04:54.8]}
4. d3 {[%clk 0:04:56]} 4... Be7 {[%clk 0:04:52.6]} 5. Be2 {[%clk 0:04:53.1]}
5... O-O {[%clk 0:04:51.6]} 6. O-O {[%clk 0:04:52.7]} 6... d6 {[%clk 0:04:50.7]}
7. d4 {[%clk 0:04:50.2]} 7... exd4 {[%clk 0:04:32.8]} 8. cxd4 {[%clk 0:04:48.2]}
8... Nxe4 {[%clk 0:04:31.1]} 9. Bd3 {[%clk 0:04:45.6]} 9... Nf6 {[%clk
0:04:27.5]} 10. Bg5 {[%clk 0:04:42.2]} 10... Bg4 {[%clk 0:04:24.9]} 11. d5
{[%clk 0:04:30.1]} 11... Nxd5 {[%clk 0:04:16.8]} 12. Bxe7 {[%clk 0:04:28.5]}
12... Ndxe7 {[%clk 0:04:15.7]} 13. Qc2 {[%clk 0:04:23.1]} 13... Bxf3 {[%clk
0:04:10.7]} 14. gxf3 {[%clk 0:04:22.5]} 14... Ng6 {[%clk 0:04:09.5]} 15. f4
{[%clk 0:04:18.5]} 15... Nxf4 {[%clk 0:04:04.8]} 16. Bxh7+ {[%clk 0:04:16.8]}
16... Kh8 {[%clk 0:04:03.6]} 17. Be4 {[%clk 0:04:12.4]} 17... d5 {[%clk
0:03:57.9]} 18. Bf3 {[%clk 0:04:00.3]} 18... Nd4 {[%clk 0:03:54.8]} 19. Qa4
{[%clk 0:03:52.1]} 19... Nde2+ {[%clk 0:03:42.8]} 20. Bxe2 {[%clk 0:03:47.1]}
20... Qg5+ {[%clk 0:03:41.6]} 0-1

[Event "Live Chess"]
[Site "Chess.com"]
[Date "2023.05.21"]
[Round "-"]
[White "laminaaprod"]
[Black "Doge_Dandolo"]
[Result "1-0"]
[WhiteElo "2264"]
[BlackElo "1923"]
[TimeControl "300"]
[EndTime "18:14:29 PDT"]
[Termination "laminaaprod won by resignation"]

1. d4 {[%clk 0:04:59.3]} 1... d5 {[%clk 0:04:56.3]} 2. c4 {[%clk 0:04:58.7]}
2... c6 {[%clk 0:04:55.7]} 3. Nf3 {[%clk 0:04:57.7]} 3... Nf6 {[%clk 0:04:54.3]}
4. Nc3 {[%clk 0:04:57.4]} 4... a6 {[%clk 0:04:53.5]} 5. cxd5 {[%clk 0:04:56.1]}
5... cxd5 {[%clk 0:04:52.3]} 6. e3 {[%clk 0:04:55.7]} 6... Nc6 {[%clk 0:04:51]}
7. Bd3 {[%clk 0:04:52.9]} 7... Bg4 {[%clk 0:04:49.7]} 8. O-O {[%clk 0:04:52]}
8... e6 {[%clk 0:04:48.9]} 9. h3 {[%clk 0:04:50.3]} 9... Bh5 {[%clk 0:04:46.9]}
10. Be2 {[%clk 0:04:48.7]} 10... Bd6 {[%clk 0:04:45.5]} 11. a3 {[%clk
0:04:44.3]} 11... O-O {[%clk 0:04:43.9]} 12. b4 {[%clk 0:04:43.9]} 12... b5
{[%clk 0:04:42.4]} 13. Bb2 {[%clk 0:04:43.3]} 13... Rc8 {[%clk 0:04:38.5]} 14.
Rc1 {[%clk 0:04:42.2]} 14... Bxf3 {[%clk 0:04:27.7]} 15. Bxf3 {[%clk 0:04:41.3]}
15... Na7 {[%clk 0:04:26.5]} 16. e4 {[%clk 0:04:38.2]} 16... dxe4 {[%clk
0:04:24.4]} 17. Nxe4 {[%clk 0:04:38.1]} 17... Nxe4 {[%clk 0:04:22.7]} 18. Bxe4
{[%clk 0:04:38]} 18... Rxc1 {[%clk 0:04:18.4]} 19. Qxc1 {[%clk 0:04:35.1]} 19...
Qc8 {[%clk 0:04:17.1]} 20. Qg5 {[%clk 0:04:28.2]} 20... Rd8 {[%clk 0:04:09]} 21.
Rc1 {[%clk 0:04:09.2]} 21... Qd7 {[%clk 0:04:02.2]} 22. d5 {[%clk 0:03:56.7]}
22... Bf8 {[%clk 0:03:59.8]} 23. dxe6 {[%clk 0:03:56.1]} 23... fxe6 {[%clk
0:03:58.7]} 24. Qh5 {[%clk 0:03:31.8]} 24... g6 {[%clk 0:03:48.8]} 25. Qe5
{[%clk 0:03:28.7]} 25... Bg7 {[%clk 0:03:47.2]} 26. Qxg7+ {[%clk 0:03:27.5]}
26... Qxg7 {[%clk 0:03:46.3]} 27. Bxg7 {[%clk 0:03:27.4]} 27... Kxg7 {[%clk
0:03:45.9]} 28. Rc7+ {[%clk 0:03:26.7]} 1-0

[Event "Live Chess"]
[Site "Chess.com"]
[Date "2023.05.21"]
[Round "-"]
[White "GMHarry-youtube"]
[Black "nigelst"]
[Result "1-0"]
[WhiteElo "2047"]
[BlackElo "1769"]
[TimeControl "300"]
[EndTime "18:15:15 PDT"]
[Termination "GMHarry-youtube won by checkmate"]

1. e4 {[%clk 0:04:58.4]} 1... c6 {[%clk 0:04:58.8]} 2. d4 {[%clk 0:04:57.1]}
2... d5 {[%clk 0:04:58.3]} 3. e5 {[%clk 0:04:56.1]} 3... c5 {[%clk 0:04:57.2]}
4. dxc5 {[%clk 0:04:55.4]} 4... e6 {[%clk 0:04:55.6]} 5. a3 {[%clk 0:04:54]}
5... Bxc5 {[%clk 0:04:54.3]} 6. b4 {[%clk 0:04:53.6]} 6... Bb6 {[%clk
0:04:53.4]} 7. Bb2 {[%clk 0:04:53.1]} 7... Nc6 {[%clk 0:04:51.9]} 8. Nf3 {[%clk
0:04:51.9]} 8... Nge7 {[%clk 0:04:48.9]} 9. Bd3 {[%clk 0:04:51.2]} 9... Ng6
{[%clk 0:04:46.7]} 10. Qe2 {[%clk 0:04:49.3]} 10... O-O {[%clk 0:04:44.4]} 11.
g3 {[%clk 0:04:47.8]} 11... Bd7 {[%clk 0:04:35]} 12. h4 {[%clk 0:04:46.5]} 12...
Nge7 {[%clk 0:04:26.2]} 13. h5 {[%clk 0:04:42.5]} 13... g6 {[%clk 0:04:23.9]}
14. Ng5 {[%clk 0:04:39.5]} 14... Nf5 {[%clk 0:04:18.8]} 15. Nxh7 {[%clk
0:04:28.1]} 15... Kxh7 {[%clk 0:04:07.1]} 16. hxg6+ {[%clk 0:04:26]} 16... Kg7
{[%clk 0:03:55.4]} 17. Bxf5 {[%clk 0:04:21.5]} 17... exf5 {[%clk 0:03:52.6]} 18.
e6+ {[%clk 0:04:20.5]} 18... f6 {[%clk 0:03:45.5]} 19. Rh7+ {[%clk 0:04:09.9]}
19... Kxg6 {[%clk 0:03:44.4]} 20. Qh5# {[%clk 0:04:07.5]} 1-0